bitfinex/quotes_ETHUSD_20250705
["timestamp","ask_amount","ask_price","bid_price","bid_amount"]
[1751675651243,24.27747499,2517.6,2517.5,0.0431108]
[1751675652739,24.2771051,2517.6,2517.5,0.0431108]
[1751675655254,24.2751051,2517.6,2517.5,0.0431108]
[1751675656167,14.3441051,2517.6,2517.5,0.0431108]
[1751675656480,24.2751051,2517.6,2517.5,0.8220108]
[1751675658149,27.85745274,2517.6,2517.5,0.0431108]
[1751675659352,59.18405274,2517.6,2517.5,0.0431108]
[1751675659549,60.30066238,2517.6,2517.5,0.0431108]
[1751675659756,59.74901504,2517.6,2517.5,0.0431108]
[1751675660169,29.74901504,2517.6,2517.5,0.0431108]
[1751675660450,49.81801504,2517.6,2517.5,0.0431108]
[1751675660655,59.75201504,2517.6,2517.5,0.0431108]
[1751675665889,59.75401504,2517.6,2517.5,0.0431108]
[1751675667190,59.75367108,2517.6,2517.5,0.0431108]
[1751675667566,59.96101213,2517.6,2517.5,0.0431108]
[1751675668075,59.96101213,2517.6,2517.5,0.0441108]
[1751675669378,59.41101213,2517.6,2517.5,0.0441108]
[1751675669998,59.96101213,2517.6,2517.5,0.0441108]
[1751675670910,29.96101213,2517.6,2517.5,0.0441108]
[1751675671115,59.96101213,2517.6,2517.5,0.0441108]
[1751675673380,50.02501213,2517.6,2517.5,0.0441108]
[1751675673696,58.06844983,2517.6,2517.5,0.0441108]
[1751675676596,28.61844983,2517.6,2517.5,0.0441108]
[1751675676797,58.24672555,2517.6,2517.5,0.0441108]
[1751675678512,35.82319251,2517.6,2517.5,0.0441108]
[1751675679208,25.88819251,2517.6,2517.5,0.0441108]
[1751675679374,35.82419251,2517.6,2517.5,0.0441108]
[1751675680769,35.82319251,2517.6,2517.5,0.0441108]
[1751675681174,27.27719251,2517.6,2517.5,0.0441108]
[1751675681370,16.11837791,2517.6,2517.5,0.0441108]
[1751675681589,14.17937791,2517.6,2517.5,0.0441108]
[1751675681807,23.90703686,2517.6,2517.5,0.0441108]
[1751675682022,3.97203686,2517.6,2517.5,0.8007108]
[1751675682319,19.938,2517.6,2517.5,0.8007108]
[1751675682617,1.939,2517.6,2517.5,0.8007108]
[1751675682811,0.1984,2517.7,2517.6,0.7566]
[1751675682980,2.1374,2517.7,2517.6,0.7566]
[1751675683180,1.939,2517.7,2517.6,4.72863686]
[1751675684715,0.2004,2517.9,2517.8,4.72832134]
[1751675685216,0.2004,2517.9,2517.8,0.7566]
[1751675685508,0.2004,2517.9,2517.8,1.6306106]
[1751675685687,0.2004,2517.9,2517.8,5.60233194]
[1751675689022,0.2004,2517.9,2517.8,1.6306106]
[1751675692215,0.2004,2517.9,2517.8,0.7566]
[1751675692515,4.1719636,2517.9,2517.8,0.7566]
[1751675692716,0.2004,2517.9,2517.8,0.7566]
[1751675693513,2.1384,2517.9,2517.8,0.7566]
[1751675695012,0.2004,2517.9,2517.8,0.7566]
[1751675695216,2.1384,2517.9,2517.8,0.7566]
[1751675695419,2.1384,2517.9,2517.8,1.22943756]
[1751675695612,0.2004,2517.9,2517.8,1.22943756]
[1751675695916,0.2004,2517.9,2517.8,5.2011589]
[1751675696119,0.2004,2517.9,2517.8,1.22943756]
[1751675696519,0.2004,2517.9,2517.8,5.2011589]
[1751675697100,0.2004,2517.9,2517.8,1.22943756]
[1751675698416,0.2004,2517.9,2517.8,0.7566]
[1751675698623,4.1719636,2517.9,2517.8,0.7566]
[1751675698791,0.2004,2517.9,2517.8,0.7566]
[1751675700498,2.1434,2517.9,2517.8,0.7566]
[1751675701499,2.1434,2517.9,2517.8,0.7576]
[1751675701722,2.5139246,2517.9,2517.8,0.7576]
[1751675702422,6.4854882,2517.9,2517.8,0.001]
[1751675702794,2.5139246,2517.9,2517.8,0.001]
[1751675708038,6.4854882,2517.9,2517.8,0.001]
[1751675708742,2.5139246,2517.9,2517.8,0.001]
[1751675709410,6.4854882,2517.9,2517.8,0.001]
[1751675710041,2.5139246,2517.9,2517.8,0.001]
[1751675711519,6.4854882,2517.9,2517.8,0.001]
[1751675711727,2.5139246,2517.9,2517.8,0.001]
[1751675713038,2.1434,2517.9,2517.8,0.001]
[1751675713245,2.51590264,2517.9,2517.8,0.001]
[1751675713434,6.48746624,2517.9,2517.8,0.001]
[1751675713835,2.51590264,2517.9,2517.8,0.001]
[1751675716043,2.51592606,2517.9,2517.8,0.001]
[1751675720147,2.51592606,2517.9,2517.8,0.7568]
[1751675720450,2.51592606,2517.9,2517.8,4.72852134]
[1751675723444,2.31752606,2517.9,2517.8,4.72852134]
[1751675724358,1.945,2517.9,2517.8,0.7568]
[1751675724534,2.31757124,2517.9,2517.8,0.7568]
[1751675727874,2.31759244,2517.9,2517.8,0.7568]
[1751675728679,2.31759244,2517.9,2517.8,4.72852134]
[1751675729076,2.31759244,2517.9,2517.8,5.61841078]
[1751675730754,2.31749986,2517.9,2517.8,5.61841078]
[1751675732481,0.37449986,2517.9,2517.8,5.61841078]
[1751675732681,0.37449986,2517.9,2517.8,5.65812799]
[1751675732856,0.37449986,2517.9,2517.8,5.81681078]
[1751675733873,0.37428286,2517.9,2517.8,5.81681078]
[1751675734075,0.37428286,2517.9,2517.8,13.81481078]
[1751675737867,0.37428286,2517.9,2517.8,31.94127774]
[1751675738186,0.002,2518.5,2518.4,3.97077509]
[1751675738386,0.01,2519.0,2518.9,3.96998689]
[1751675738574,0.01,2519.0,2518.9,13.03948675]
[1751675738773,0.01,2519.0,2518.9,12.99978689]
[1751675742681,0.01,2519.0,2518.9,13.54978689]
[1751675742886,0.01,2519.0,2518.9,16.05942475]
[1751675743378,0.01,2519.0,2518.9,26.05942475]
[1751675746677,1e-08,2519.0,2518.9,26.05942475]
[1751675748675,1e-08,2519.0,2518.9,18.05842475]
[1751675748883,1e-08,2519.0,2518.9,27.99742475]
[1751675751406,1e-08,2519.0,2518.9,18.05842475]
[1751675751597,1e-08,2519.0,2518.9,26.05942475]
[1751675752524,1e-08,2519.0,2518.9,26.05842475]
[1751675754922,1e-08,2519.0,2518.9,18.05842475]
[1751675755099,1e-08,2519.0,2518.9,26.05842475]
[1751675755886,1e-08,2519.0,2518.9,18.05842475]
[1751675756095,1e-08,2519.0,2518.9,16.05842475]
[1751675756307,1e-08,2519.0,2518.9,26.05842475]
[1751675758444,1e-08,2519.0,2518.9,18.05842475]
[1751675758735,1e-08,2519.0,2518.9,26.05742475]
[1751675759740,1e-08,2519.0,2518.9,26.05642475]
[1751675766637,1e-08,2519.0,2518.9,26.05742475]
[1751675771948,1e-08,2519.0,2518.9,24.67302475]
[1751675773545,1e-08,2519.0,2518.9,16.67902475]
[1751675773720,1e-08,2519.0,2518.9,24.67302475]
[1751675775145,1e-08,2519.0,2518.9,16.67902475]
[1751675775340,1e-08,2519.0,2518.9,24.67202475]
[1751675775539,1e-08,2519.0,2518.9,16.67902475]
[1751675775718,1e-08,2519.0,2518.9,24.67202475]
[1751675776845,1e-08,2519.0,2518.9,16.67902475]
[1751675777031,1e-08,2519.0,2518.9,24.67202475]
[1751675777547,1e-08,2519.0,2518.9,16.67902475]
[1751675777747,1e-08,2519.0,2518.9,24.67202475]
[1751675778850,1e-08,2519.0,2518.9,24.67102475]
[1751675780253,1e-08,2519.0,2518.9,16.67902475]
[1751675780455,1e-08,2519.0,2518.9,24.67002475]
[1751675783363,1e-08,2519.0,2518.9,16.67902475]
[1751675783660,1e-08,2519.0,2518.9,24.67002475]
[1751675784454,1e-08,2519.0,2518.9,16.67902475]
[1751675784652,1e-08,2519.0,2518.9,24.66902475]
[1751675787265,1e-08,2519.0,2518.9,16.67902475]
[1751675787769,1e-08,2519.0,2518.9,24.66802475]
[1751675789280,1e-08,2519.0,2518.9,16.67902475]
[1751675789644,1e-08,2519.0,2518.9,24.66802475]
[1751675790277,1e-08,2519.0,2518.9,16.67902475]
[1751675790445,1e-08,2519.0,2518.9,24.66702475]
[1751675790943,1e-08,2519.0,2518.9,0.1994]
[1751675791274,0.37244417,2519.0,2518.9,11.95898689]
[1751675791476,1e-08,2519.0,2518.9,11.95898689]
[1751675791976,0.37238889,2519.0,2518.9,11.95898689]
[1751675792377,0.37238889,2519.0,2518.9,11.96098689]
[1751675793247,1e-08,2519.0,2518.9,11.96098689]
[1751675793447,1e-08,2519.0,2518.9,23.65519738]
[1751675797475,1e-08,2519.0,2518.9,11.96098689]
[1751675797673,1e-08,2519.0,2518.9,11.95998689]
[1751675797859,0.3722779,2519.0,2518.9,11.95998689]
[1751675803474,1e-08,2519.0,2518.9,11.95998689]
[1751675804765,1e-08,2519.0,2518.9,3.97098689]
[1751675804970,1e-08,2519.0,2518.9,11.95898689]
[1751675805878,0.37222713,2519.0,2518.9,11.95898689]
[1751675806197,0.37222713,2519.0,2518.9,7.99]
[1751675806401,0.90882903,2519.0,2518.9,0.001]
[1751675806610,1.66872903,2519.0,2518.9,0.001]
[1751675806902,1.13212713,2519.0,2518.9,7.991]
[1751675807770,1.13212713,2519.0,2518.9,11.96098689]
[1751675807771,0.37222713,2519.0,2518.9,11.96098689]
[1751675811414,0.37222713,2519.0,2518.9,3.97098689]
[1751675811614,0.37222713,2519.0,2518.9,11.96298689]
[1751675815426,0.3720111,2519.0,2518.9,11.96298689]
[1751675822629,0.3720111,2519.0,2518.9,13.65718867]
[1751675824196,0.3720111,2519.0,2518.9,1.69520178]
[1751675824428,1.1815111,2519.0,2518.9,7.99]
[1751675825296,1.1815111,2519.0,2518.9,0.001]
[1751675825497,5.15134039,2519.0,2518.9,0.001]
[1751675825744,15.15134039,2519.0,2518.9,0.001]
[1751675825901,17.82110368,2519.0,2518.9,0.001]
[1751675831235,19.75810368,2519.0,2518.9,0.001]
[1751675834463,27.77010368,2519.0,2518.9,0.001]
[1751675834968,27.7692599,2519.0,2518.9,0.001]
[1751675845072,27.76923716,2519.0,2518.9,0.001]
[1751675846873,28.31923716,2519.0,2518.9,0.001]
[1751675850953,0.7532,2518.4,2517.9,0.8239]
[1751675851177,0.1984,2518.1,2517.8,0.001]
[1751675851355,0.37114457,2518.0,2517.9,3.9715636]
[1751675851761,0.37114457,2518.0,2517.9,4.7972636]
[1751675857997,0.37114457,2518.0,2517.9,0.8257]
[1751675858186,0.37114457,2518.0,2517.8,3.97269413]
[1751675858389,0.37114457,2517.9,2517.8,3.97269413]
[1751675859294,0.37114457,2517.9,2517.8,0.001]
[1751675859686,0.56954457,2517.9,2517.8,0.001]
[1751675866510,0.56954457,2517.9,2517.8,4.72792134]
[1751675866808,0.37114457,2517.9,2517.8,4.72792134]
[1751675868477,0.37114457,2517.9,2517.8,0.001]
[1751675868696,0.56954457,2517.9,2517.8,0.001]
[1751675868871,1.42034547,2517.9,2517.8,0.001]
[1751675871407,12.96837603,2517.9,2517.8,0.001]
[1751675874717,13.73547603,2517.9,2517.8,0.001]
[1751675876389,12.96837603,2517.9,2517.8,0.001]
[1751675876924,14.91437603,2517.9,2517.8,0.001]
[1751675877915,10.94281243,2517.9,2517.8,0.001]
[1751675878223,3.36634547,2517.9,2517.8,0.001]
[1751675878425,1.42034547,2517.9,2517.8,0.001]
[1751675878625,3.36634547,2517.9,2517.8,0.001]
[1751675878925,2.51554457,2517.9,2517.8,0.001]
[1751675879123,2.51632521,2517.9,2517.8,0.001]
[1751675879526,2.5164118,2517.9,2517.8,0.001]
[1751675879833,4.5419754,2517.9,2517.8,0.001]
[1751675880038,6.4879754,2517.9,2517.8,0.001]
[1751675880197,4.5419754,2517.9,2517.8,0.001]
[1751675880399,6.4879754,2517.9,2517.8,0.001]
[1751675881135,6.48807015,2517.9,2517.8,0.001]
[1751675881796,2.51650655,2517.9,2517.8,0.001]
[1751675882920,10.00863434,2517.9,2517.8,0.001]
[1751675888528,2.51450655,2517.9,2517.8,0.001]
[1751675889848,2.51486765,2517.9,2517.8,0.001]
[1751675891640,2.51486765,2517.9,2517.8,3.97272134]
[1751675892016,0.57086765,2517.9,2517.8,4.79732134]
[1751675892341,0.37246765,2517.9,2517.8,4.99572134]
[1751675892529,0.37246765,2517.9,2517.8,5.89247879]
[1751675895849,1.944,2518.2,2517.9,3.97151942]
[1751675896049,0.3722645,2518.1,2518.0,3.97140587]
[1751675896449,0.37222545,2518.1,2517.9,3.97148595]
[1751675896619,0.37222545,2518.0,2517.9,3.97148595]
[1751675899452,0.37222545,2518.0,2517.9,5.72191861]
[1751675902055,1.944,2518.2,2518.0,3.97135022]
[1751675902249,0.37201258,2518.1,2518.0,3.97135022]
[1751675902453,1.944,2518.2,2518.0,3.97135022]
[1751675902626,0.37200881,2518.1,2518.0,3.97135022]
[1751675903262,0.37200881,2518.1,2518.0,5.66737384]
[1751675904061,0.37200881,2518.1,2518.0,5.70708789]
[1751675904260,0.37200881,2518.1,2518.0,6.69027384]
[1751675904957,2.1424,2518.5,2518.3,3.97088747]
[1751675905156,0.37183972,2518.4,2518.3,3.97088747]
[1751675906671,0.37183972,2518.4,2518.1,8.003]
[1751675906855,2.1424,2518.5,2518.1,11.97417776]
[1751675906856,0.37183972,2518.3,2518.1,11.97417776]
[1751675907057,0.37183972,2518.2,2518.1,11.97417776]
[1751675907943,0.37170487,2518.2,2518.1,11.97417776]
[1751675909675,0.37170487,2518.2,2518.1,8.003]
[1751675909875,0.37170487,2518.2,2518.1,8.002]
[1751675910176,0.37170487,2518.2,2518.0,8.002]
[1751675910346,0.57010487,2518.1,2518.0,8.002]
[1751675910547,0.57010487,2518.1,2517.8,0.812]
[1751675910857,0.37170487,2518.0,2517.9,8.003]
[1751675913975,0.37179956,2518.0,2517.9,11.9745636]
[1751675916082,0.37179956,2518.0,2517.9,8.003]
[1751675916380,0.37179956,2518.0,2517.9,11.9745636]
[1751675916882,0.37195708,2518.0,2517.9,11.9745636]
[1751675917283,0.37195708,2518.0,2517.9,8.003]
[1751675919679,0.1984,2518.1,2517.9,8.003]
[1751675919982,0.37217438,2518.0,2517.9,8.003]
[1751675920860,0.37217438,2518.0,2517.9,11.9745636]
[1751675924197,0.37217438,2518.0,2517.9,12.7940636]
[1751675924491,0.37217438,2518.0,2517.9,14.49058087]
[1751675924708,0.37217438,2518.0,2517.9,14.68898087]
[1751675931411,0.1984,2518.5,2518.2,3.97094298]
[1751675931584,0.37228586,2518.4,2518.3,8.0]
[1751675932000,0.37228586,2518.4,2518.3,11.97093277]
[1751675934012,0.37228586,2518.4,2518.3,13.84221364]
[1751675937224,1.941,2518.8,2518.6,3.97034992]
[1751675937409,0.37202668,2518.7,2518.6,11.96945977]
[1751675942033,0.002,2518.9,2518.8,3.97014451]
[1751675942332,0.37372232,2518.9,2518.8,15.02273418]
[1751675942534,0.002,2518.9,2518.8,14.98303274]
[1751675946042,0.002,2518.9,2518.8,14.15853274]
[1751675946623,0.002,2518.9,2518.8,6.15953274]
[1751675946937,0.002,2518.9,2518.8,12.16754451]
[1751675947511,0.002,2518.9,2518.8,11.96914451]
[1751675959858,0.002,2518.9,2518.8,12.97154451]
[1751675960353,0.002,2518.9,2518.8,22.97154451]
[1751675965446,0.002,2518.9,2518.8,24.86482793]
[1751675971474,0.002,2518.9,2518.8,24.06082793]
[1751675976181,0.002,2518.9,2518.8,24.81952793]
[1751675976387,0.002,2518.9,2518.8,25.36952793]
[1751675977924,1e-08,2519.0,2518.9,14.51998689]
[1751675978064,1e-08,2519.0,2518.9,19.12757937]
[1751675979595,0.37158147,2519.8,2519.7,4.72742643]
[1751675979878,0.0531108,2520.0,2519.9,4.72711144]
[1751675980059,0.0531108,2520.0,2519.9,12.96319555]
[1751675980278,0.0531108,2520.0,2519.9,23.53356792]
[1751675980453,1e-08,2520.0,2519.9,24.08356792]
[1751675980661,1e-08,2520.1,2520.0,14.72695396]
[1751675980854,1e-08,2520.1,2520.0,22.30342092]
[1751675981083,1e-08,2520.1,2520.0,23.97630179]
[1751675987902,1e-08,2520.1,2520.0,16.39983483]
[1751675988063,1e-08,2520.1,2520.0,5.64113483]
[1751675988263,1e-08,2520.1,2520.0,11.96625396]
[1751675990194,1e-08,2520.1,2520.0,11.96825396]
[1751675990560,1e-08,2520.1,2520.0,3.96825396]
[1751675990767,1e-08,2520.1,2520.0,11.96825396]
[1751675991466,1e-08,2520.1,2520.0,11.96925396]
[1751675995201,1e-08,2520.1,2519.9,4.16671655]
[1751675995413,0.82000001,2520.1,2520.0,11.96825396]
[1751675996387,1e-08,2520.1,2520.0,11.96825396]
[1751675997783,1e-08,2520.1,2520.0,11.96625396]
[1751675997999,1e-08,2520.1,2520.0,7.998]
[1751675999002,1e-08,2520.1,2520.0,11.96625396]
[1751676004016,0.8069,2520.0,2519.9,0.1984]
[1751676004236,0.8069,2520.0,2519.9,11.96541144]
[1751676004423,1e-08,2520.1,2520.0,3.96825396]
[1751676005833,1e-08,2520.1,2519.9,12.16372783]
[1751676006035,1e-08,2520.1,2520.0,7.999]
[1751676007251,5.14591868,2520.1,2519.6,3.96876523]
[1751676007401,0.37123909,2520.0,2519.7,8.002]
[1751676008044,4.00809827,2520.0,2519.8,8.002]
[1751676008251,0.3712317,2519.9,2519.8,8.002]
[1751676011832,0.3712317,2519.9,2519.6,0.1984]
[1751676012040,5.01323088,2520.1,2519.6,0.1984]
[1751676012041,0.8069,2519.7,2519.6,0.1984]
[1751676012208,0.8069,2519.7,2519.6,8.1994]
[1751676012941,0.8069,2519.7,2519.6,0.1984]
[1751676013151,1.32818594,2519.7,2519.6,8.002]
[1751676013433,1.28843699,2519.7,2519.6,8.002]
[1751676013641,1.65961866,2519.7,2519.6,8.002]
[1751676014137,1.17808167,2519.7,2519.6,8.002]
[1751676014643,0.37118167,2519.7,2519.6,11.97088394]
[1751676014936,0.37118167,2519.7,2519.6,8.002]
[1751676015140,0.37118167,2519.7,2519.6,11.97088394]
[1751676016342,0.1984,2519.9,2519.8,3.96856893]
[1751676016545,0.56953644,2519.9,2519.8,11.97256893]
[1751676017245,0.56953644,2519.9,2519.8,8.004]
[1751676021045,0.56953644,2519.9,2519.5,0.1984]
[1751676021046,2.57943306,2519.9,2519.5,0.1984]
[1751676021347,0.41088539,2519.8,2519.7,8.001]
[1751676022748,0.37113644,2519.8,2519.7,8.001]
[1751676024120,0.41088539,2519.8,2519.7,8.001]
[1751676025545,0.03974895,2519.8,2519.7,8.001]
[1751676025748,0.41128172,2519.8,2519.7,8.001]
[1751676027125,4.37985065,2519.8,2519.7,8.001]
[1751676028057,0.41128172,2519.8,2519.7,8.001]
[1751676028627,0.41128172,2519.8,2519.5,0.1984]
[1751676028827,0.37153277,2519.7,2519.6,8.0]
[1751676032364,0.37179875,2519.7,2519.6,8.0]
[1751676035667,0.37179875,2519.7,2519.6,7.997]
[1751676038765,4.3405515,2519.7,2519.3,0.1984]
[1751676038969,5.14772143,2519.6,2519.4,7.996]
[1751676039169,0.37179875,2519.5,2519.4,7.996]
[1751676039688,0.4115477,2519.5,2519.4,7.996]
[1751676043788,0.37179875,2519.5,2519.4,7.996]
[1751676049191,0.37179875,2519.5,2519.4,11.96519901]
[1751676049393,0.37179875,2519.5,2519.4,13.83532279]
[1751676058804,1.94000001,2520.1,2519.4,14.62822279]
[1751676059011,0.37200265,2520.0,2519.9,3.96839991]
[1751676059201,0.37200265,2520.0,2519.9,7.994]
[1751676060179,0.37200265,2520.0,2519.8,3.9684933]
[1751676060408,0.37200265,2519.9,2519.8,3.9684933]
[1751676060710,0.37200265,2519.9,2519.8,11.9634933]
[1751676061708,0.37200265,2519.9,2519.7,0.1984]
[1751676061883,0.03974895,2520.0,2519.8,7.994]
[1751676062078,0.37200614,2519.9,2519.7,0.1984]
[1751676062412,0.03974895,2520.0,2519.8,7.994]
[1751676062605,0.5704105,2519.9,2519.8,7.994]
[1751676065509,8.14687746,2519.9,2519.8,7.994]
[1751676065709,0.5704105,2519.9,2519.8,7.994]
[1751676078393,0.57062543,2519.9,2519.8,7.994]
[1751676080621,0.57062543,2519.9,2519.8,7.995]
[1751676081324,0.57074562,2519.9,2519.8,7.995]
[1751676082693,7.24802479,2519.9,2519.8,7.994]
[1751676082908,7.24802479,2519.9,2519.8,0.001]
[1751676083090,7.28777374,2519.9,2519.8,0.001]
[1751676096532,6.46457374,2519.9,2519.8,0.001]
[1751676100107,14.0410407,2519.9,2519.8,0.001]
[1751676100417,14.00129175,2519.9,2519.8,0.001]
[1751676107242,10.03288031,2519.9,2519.8,0.001]
[1751676107845,14.00129175,2519.9,2519.8,0.001]
[1751676109847,11.9326783,2519.9,2519.8,0.001]
[1751676113544,11.93289271,2519.9,2519.8,0.001]
[1751676114241,11.93289269,2519.9,2519.8,0.001]
[1751676115658,12.75529269,2519.9,2519.8,0.001]
[1751676120563,11.93289269,2519.9,2519.8,0.001]
[1751676122965,6.42503918,2519.9,2519.8,0.001]
[1751676123138,6.46478813,2519.9,2519.8,0.001]
[1751676124380,8.40378409,2519.9,2519.8,0.001]
[1751676124533,8.36403514,2519.9,2519.8,0.001]
[1751676126059,8.01780948,2519.9,2519.8,0.001]
[1751676128374,7.64525351,2519.9,2519.8,0.001]
[1751676128535,7.68500246,2519.9,2519.8,0.001]
[1751676129165,8.05755153,2519.9,2519.8,0.001]
[1751676129364,8.01780258,2519.9,2519.8,0.001]
[1751676132573,11.98621402,2519.9,2519.8,0.001]
[1751676137679,8.01780258,2519.9,2519.8,0.001]
[1751676138871,0.57091868,2519.9,2519.8,4.76606893]
[1751676139088,0.57091868,2519.9,2519.8,5.63954724]
[1751676140868,0.37251868,2519.9,2519.8,5.87763292]
[1751676142276,0.002,2520.0,2519.9,4.72761144]
[1751676142454,0.37367249,2520.0,2519.9,12.71961144]
[1751676143383,0.002,2520.0,2519.9,12.71961144]
[1751676143555,0.002,2520.0,2519.9,14.89258873]
[1751676144676,0.002,2520.0,2519.9,15.44258873]
[1751676145973,0.002,2520.0,2519.9,14.89158873]
[1751676148769,0.002,2520.0,2519.9,24.89158873]
[1751676156182,0.002,2520.0,2519.9,25.44158873]
[1751676157659,1e-08,2520.0,2519.9,25.44158873]
[1751676161458,1e-08,2520.2,2520.1,15.2831965]
[1751676161659,1e-08,2520.2,2520.1,27.31968898]
[1751676162389,1e-08,2520.2,2520.1,29.25768898]
[1751676162888,1e-08,2520.2,2520.1,36.82406752]
[1751676163270,1e-08,2520.5,2520.4,15.28272418]
[1751676163579,1e-08,2520.5,2520.4,24.60408935]
[1751676163779,0.0431108,2521.0,2520.9,5.28193724]
[1751676163959,0.0431108,2521.0,2520.9,13.51220561]
[1751676164160,0.0431108,2521.0,2520.9,13.47253724]
[1751676169288,1e-08,2521.1,2521.0,15.28717988]
[1751676169465,1e-08,2521.1,2521.0,16.16065819]
[1751676170978,0.0431108,2522.0,2521.9,3.96526428]
[1751676171178,0.0431108,2522.0,2521.9,22.97601692]
[1751676171392,0.0431108,2522.0,2521.9,12.16586428]
[1751676171563,0.0431108,2522.0,2521.9,4.16286428]
[1751676171764,0.0431108,2522.0,2521.9,12.16486428]
[1751676172885,0.0431108,2522.0,2521.6,10.0]
[1751676173063,0.0431108,2522.0,2521.8,0.1976]
[1751676173265,0.0431108,2522.0,2521.9,8.002]
[1751676174085,0.8743108,2522.0,2521.9,8.003]
[1751676174260,2.1396175,2522.0,2521.9,8.003]
[1751676175584,2.15600045,2522.0,2521.9,8.003]
[1751676175979,6.08136492,2522.0,2521.5,3.96581677]
[1751676176183,0.1976,2521.9,2521.6,8.002]
[1751676177562,0.7697,2521.7,2521.6,8.003]
[1751676177793,2.23837432,2521.7,2521.6,8.003]
[1751676177994,0.9673,2521.7,2521.6,8.003]
[1751676181366,3.96581194,2521.6,2521.2,0.1976]
[1751676181593,0.1976,2521.5,2521.3,8.001]
[1751676181794,0.1976,2521.5,2521.1,4.16404206]
[1751676181997,0.8307,2521.4,2521.1,0.1976]
[1751676182186,0.8307,2521.4,2521.2,8.002]
[1751676182388,0.8307,2521.4,2521.2,11.96833492]
[1751676182569,0.8307,2521.4,2521.1,4.16404128]
[1751676182771,0.8307,2521.4,2521.2,8.002]
[1751676183869,0.8307,2521.4,2521.1,0.1976]
[1751676184074,0.8307,2521.4,2521.2,8.001]
[1751676184299,1.06804895,2521.4,2521.2,8.001]
[1751676184999,5.03411112,2521.4,2520.9,4.16437859]
[1751676185305,0.8307,2521.0,2520.9,8.001]
[1751676186709,7.56637854,2521.3,2521.1,3.96649632]
[1751676186710,0.7781,2521.3,2521.1,3.96649632]
[1751676187005,0.9757,2521.3,2521.1,8.002]
[1751676187893,0.9757,2521.3,2521.2,3.96636522]
[1751676188201,1.3460073,2521.3,2521.1,11.96845694]
[1751676188408,0.9757,2521.3,2521.1,8.002]
[1751676189503,0.9757,2521.3,2521.1,8.007]
[1751676189910,0.9757,2521.3,2521.1,11.97343427]
[1751676190112,0.9757,2521.3,2521.2,3.96636522]
[1751676190289,0.56812081,2521.3,2521.2,3.96636522]
[1751676190485,0.1976,2521.3,2521.2,3.96636522]
[1751676192198,0.56812081,2521.3,2521.2,3.96636522]
[1751676192374,0.37052081,2521.3,2521.2,5.60000882]
[1751676192577,0.37052081,2521.3,2521.2,5.79760882]
[1751676192790,0.1976,2521.7,2521.5,3.96574088]
[1751676192990,0.1976,2521.7,2521.6,8.009]
[1751676193271,0.1976,2521.7,2521.6,11.97473604]
[1751676202404,0.1976,2521.7,2521.6,8.009]
[1751676202610,0.23734895,2521.7,2521.6,8.009]
[1751676202805,0.23734895,2521.7,2521.2,0.1976]
[1751676203109,0.73562894,2521.7,2521.3,8.006]
[1751676203509,0.73562894,2521.7,2521.4,3.96597366]
[1751676203685,8.30200748,2521.7,2521.5,8.007]
[1751676203884,8.26225853,2521.7,2521.5,8.007]
[1751676204096,0.03974895,2521.6,2521.5,8.007]
[1751676204410,0.78984895,2521.6,2521.5,8.007]
[1751676205219,1.6950597,2521.6,2521.5,8.007]
[1751676205715,0.7501,2521.5,2521.1,0.001]
[1751676205921,0.1976,2521.3,2521.1,11.97443545]
[1751676206087,0.03974895,2521.2,2521.1,11.97443545]
[1751676206287,0.23734895,2521.3,2521.2,3.96636522]
[1751676206901,0.23734895,2521.3,2521.1,11.97445259]
[1751676207112,0.8294,2521.8,2521.2,4.00602887]
[1751676207421,0.1976,2521.4,2521.3,8.01]
[1751676207620,1.027,2521.4,2521.3,8.01]
[1751676207823,1.027,2521.4,2521.1,8.013]
[1751676208034,0.7506,2521.2,2521.1,0.001]
[1751676208192,5.99963797,2521.2,2521.1,0.001]
[1751676208508,6.78998692,2521.2,2521.1,0.001]
[1751676208890,2.8236217,2521.2,2521.1,0.001]
[1751676209087,12.93494895,2521.2,2521.1,0.001]
[1751676209294,12.8952,2521.2,2521.1,0.001]
[1751676211925,10.9482,2521.2,2521.1,0.001]
[1751676212123,12.8952,2521.2,2521.1,0.001]
[1751676213192,2.1446,2521.2,2521.1,3.96752254]
[1751676215317,2.18434895,2521.2,2521.1,3.96752254]
[1751676218522,0.1976,2521.2,2521.1,3.96752254]
[1751676220321,0.79034895,2521.4,2521.3,3.9662079]
[1751676220523,2.18434895,2521.4,2521.3,3.9662079]
[1751676221806,2.18434895,2521.4,2521.2,3.96630637]
[1751676222306,2.18434895,2521.4,2521.3,3.9662079]
[1751676222926,2.1446,2521.4,2521.3,3.9662079]
[1751676223106,2.51528556,2521.4,2521.3,3.9662079]
[1751676225229,0.56828556,2521.4,2521.3,3.9662079]
[1751676226230,0.37068556,2521.4,2521.3,3.9662079]
[1751676227325,2.1486,2521.6,2521.4,3.9660506]
[1751676227530,0.37083585,2521.5,2521.4,3.9660506]
[1751676230711,0.37094548,2521.5,2521.4,3.9660506]
[1751676239735,0.37119593,2521.5,2521.4,3.9660506]
[1751676243637,0.37119593,2521.5,2521.4,5.64229539]
[1751676245439,0.37119593,2521.5,2521.4,5.68195589]
[1751676247346,0.37119593,2521.5,2521.4,1.67624479]
[1751676247511,0.37119593,2521.5,2521.4,11.9730506]
[1751676247844,0.37119593,2521.5,2521.3,0.001]
[1751676247845,3.9660506,2521.4,2521.3,0.001]
[1751676248143,5.35794653,2521.4,2521.3,0.001]
[1751676249046,1.39189593,2521.4,2521.3,0.001]
[1751676249244,1.43164488,2521.4,2521.3,0.001]
[1751676249616,0.56669396,2521.4,2521.3,0.001]
[1751676250816,0.56669396,2521.4,2521.3,3.9672079]
[1751676252747,0.56669396,2521.4,2521.3,0.001]
[1751676253249,0.56742822,2521.4,2521.3,0.001]
[1751676253939,0.19549803,2521.4,2521.3,0.001]
[1751676254115,0.56746377,2521.4,2521.3,0.001]
[1751676254317,0.56746377,2521.4,2521.3,3.9672079]
[1751676255849,1.947,2521.6,2521.5,3.96589331]
[1751676256036,2.31903978,2521.6,2521.5,3.96589331]
[1751676257045,0.37203978,2521.6,2521.5,3.96589331]